[Event "Titled Tuesday Blitz February 21 Early 2023"]
[White "Spitzl, Vinzent"]
[Black "Novikov, Evgenij"]
[WhiteFideId "12901253"]
[BlackFideId "4125380"]
[WhiteElo "2365"]
[BlackElo "2276"]
[Result "1-0"]
[Round "05"]
[TimeControl "180+2"]
[Date "2023.02.21"]
[WhiteClock "0:00:22"]
[BlackClock "0:00:39"]

1. e4 {[%clk 0:03:00]}  c5 {[%clk 0:02:58]} 2. Nf3 {[%clk 0:03:00]}  d6 {[%clk 0:02:56]} 3. d4 {[%clk 0:03:00]}  cxd4 {[%clk 0:02:57]} 4. Nxd4 {[%clk 0:03:00]}  Nf6 {[%clk 0:02:58]} 5. Nc3 {[%clk 0:03:01]}  g6 {[%clk 0:02:58]} 6. Be3 {[%clk 0:03:00]}  a6 {[%clk 0:02:56]} 7. f3 {[%clk 0:02:59]}  b5 {[%clk 0:02:52]} 8. a3 {[%clk 0:02:48]}  Bb7 {[%clk 0:02:51]} 9. Qd2 {[%clk 0:02:48]}  Nbd7 {[%clk 0:02:47]} 10. Be2 {[%clk 0:02:45]}  Rc8 {[%clk 0:02:43]} 11. O-O {[%clk 0:02:44]}  Ne5 {[%clk 0:02:36]} 12. Rad1 {[%clk 0:02:40]}  Nc4 {[%clk 0:02:22]} 13. Bxc4 {[%clk 0:02:40]}  Rxc4 {[%clk 0:02:22]} 14. Nde2 {[%clk 0:02:32]}  Qb8 {[%clk 0:01:49]} 15. Nf4 {[%clk 0:02:27]}  Bg7 {[%clk 0:01:42]} 16. b3 {[%clk 0:02:23]}  Rc7 {[%clk 0:01:25]} 17. Ncd5 {[%clk 0:02:06]}  Nxd5 {[%clk 0:01:24]} 18. Nxd5 {[%clk 0:02:06]}  Rd7 {[%clk 0:01:21]} 19. Bd4 {[%clk 0:01:53]}  O-O {[%clk 0:01:14]} 20. Bxg7 {[%clk 0:01:49]}  Kxg7 {[%clk 0:01:15]} 21. Qd4+ {[%clk 0:01:49]}  Kg8 {[%clk 0:01:03]} 22. h4 {[%clk 0:01:29]}  Bxd5 {[%clk 0:01:00]} 23. exd5 {[%clk 0:01:24]}  Qa7 {[%clk 0:00:58]} 24. Rfe1 {[%clk 0:01:20]}  Rc8 {[%clk 0:00:56]} 25. Qxa7 {[%clk 0:01:19]}  Rxa7 {[%clk 0:00:57]} 26. Re2 {[%clk 0:01:18]}  Rac7 {[%clk 0:00:57]} 27. Rdd2 {[%clk 0:01:06]}  h5 {[%clk 0:00:55]} 28. Kf1 {[%clk 0:01:04]}  Kg7 {[%clk 0:00:55]} 29. Ke1 {[%clk 0:01:04]}  Kf6 {[%clk 0:00:55]} 30. Kd1 {[%clk 0:01:05]}  Rc3 {[%clk 0:00:55]} 31. Re4 {[%clk 0:00:59]}  R8c7 {[%clk 0:00:48]} 32. a4 {[%clk 0:00:54]}  R3c5 {[%clk 0:00:43]} 33. axb5 {[%clk 0:00:45]}  axb5 {[%clk 0:00:43]} 34. Re3 {[%clk 0:00:29]}  Ra7 {[%clk 0:00:40]} 35. Kc1 {[%clk 0:00:22]}  Ra1+ {[%clk 0:00:38]} 36. Kb2 {[%clk 0:00:23]}  Rh1 {[%clk 0:00:39]} 37. Re4 {[%clk 0:00:22]} 1-0


[Site "https://www.chess.com"]

[Event "Titled Tuesday Blitz February 21 Early 2023"]
[White "Iljin, Timofey"]
[Black "Pinheiro, Iung Alicio de O."]
[WhiteFideId "14110180"]
[BlackFideId "2104350"]
[WhiteElo "2329"]
[BlackElo "2306"]
[Result "0-1"]
[Round "05"]
[TimeControl "180+2"]
[Date "2023.02.21"]
[WhiteClock "0:00:02"]
[BlackClock "0:00:02"]

1. e4 {[%clk 0:02:55]}  c5 {[%clk 0:02:59]} 2. c3 {[%clk 0:02:55]}  Nf6 {[%clk 0:02:58]} 3. e5 {[%clk 0:02:55]}  Nd5 {[%clk 0:02:59]} 4. d4 {[%clk 0:02:56]}  cxd4 {[%clk 0:02:57]} 5. cxd4 {[%clk 0:02:57]}  d6 {[%clk 0:02:57]} 6. Nf3 {[%clk 0:02:57]}  Nc6 {[%clk 0:02:53]} 7. Bc4 {[%clk 0:02:57]}  Nb6 {[%clk 0:02:47]} 8. Bb5 {[%clk 0:02:57]}  d5 {[%clk 0:02:40]} 9. O-O {[%clk 0:02:53]}  Bf5 {[%clk 0:02:39]} 10. Nc3 {[%clk 0:02:50]}  e6 {[%clk 0:02:39]} 11. h3 {[%clk 0:02:48]}  Be7 {[%clk 0:02:39]} 12. Be3 {[%clk 0:02:48]}  Rc8 {[%clk 0:02:36]} 13. Rc1 {[%clk 0:02:48]}  a6 {[%clk 0:02:36]} 14. Bxc6+ {[%clk 0:02:44]}  Rxc6 {[%clk 0:02:35]} 15. Qb3 {[%clk 0:02:29]}  Qd7 {[%clk 0:02:10]} 16. Nd2 {[%clk 0:01:45]}  h5 {[%clk 0:01:48]} 17. a4 {[%clk 0:01:44]}  O-O {[%clk 0:01:37]} 18. a5 {[%clk 0:01:43]}  Nc4 {[%clk 0:01:37]} 19. Nxc4 {[%clk 0:01:43]}  Rxc4 {[%clk 0:01:35]} 20. Ne2 {[%clk 0:01:34]}  Rfc8 {[%clk 0:00:58]} 21. Rxc4 {[%clk 0:01:33]}  Rxc4 {[%clk 0:00:54]} 22. Rc1 {[%clk 0:01:33]}  Qc6 {[%clk 0:00:46]} 23. Rxc4 {[%clk 0:01:32]}  dxc4 {[%clk 0:00:47]} 24. Qc3 {[%clk 0:01:26]}  h4 {[%clk 0:00:46]} 25. f3 {[%clk 0:01:13]}  Bd3 {[%clk 0:00:43]} 26. Nf4 {[%clk 0:01:07]}  Bf5 {[%clk 0:00:42]} 27. Kf2 {[%clk 0:01:02]}  Qb5 {[%clk 0:00:41]} 28. Bd2 {[%clk 0:00:57]}  f6 {[%clk 0:00:34]} 29. Ne2 {[%clk 0:00:55]}  fxe5 {[%clk 0:00:33]} 30. dxe5 {[%clk 0:00:55]}  Bc5+ {[%clk 0:00:33]} 31. Nd4 {[%clk 0:00:54]}  Qd7 {[%clk 0:00:28]} 32. Be3 {[%clk 0:00:55]}  Bd3 {[%clk 0:00:27]} 33. b3 {[%clk 0:00:45]}  Qd5 {[%clk 0:00:27]} 34. bxc4 {[%clk 0:00:44]}  Bxc4 {[%clk 0:00:28]} 35. Nc2 {[%clk 0:00:34]}  Be7 {[%clk 0:00:19]} 36. Bd4 {[%clk 0:00:32]}  Bb5 {[%clk 0:00:16]} 37. Nb4 {[%clk 0:00:22]}  Qd7 {[%clk 0:00:13]} 38. Bb6 {[%clk 0:00:13]}  Kf7 {[%clk 0:00:12]} 39. Nc2 {[%clk 0:00:11]}  Bg5 {[%clk 0:00:11]} 40. Nd4 {[%clk 0:00:11]}  Be7 {[%clk 0:00:10]} 41. Qe3 {[%clk 0:00:10]}  Qd5 {[%clk 0:00:08]} 42. Qf4+ {[%clk 0:00:10]}  Kg8 {[%clk 0:00:09]} 43. Qe4 {[%clk 0:00:07]}  Qa2+ {[%clk 0:00:08]} 44. Kg1 {[%clk 0:00:07]}  Qa1+ {[%clk 0:00:06]} 45. Kh2 {[%clk 0:00:07]}  Qb2 {[%clk 0:00:03]} 46. Qxb7 {[%clk 0:00:07]}  Bf1 {[%clk 0:00:04]} 47. f4 {[%clk 0:00:05]}  Bb4 {[%clk 0:00:04]} 48. Nxe6 {[%clk 0:00:02]}  Bf8 {[%clk 0:00:03]} 49. Qc8 {[%clk 0:00:02]}  Qxg2# {[%clk 0:00:02]} 0-1


[Site "https://www.chess.com"]

[Event "Titled Tuesday Blitz February 21 Early 2023"]
[White "Jimenez, Joaquin"]
[Black "The_Sherman_Variation"]
[WhiteFideId "109860"]
[WhiteElo "2195"]
[BlackElo "2513"]
[Result "0-1"]
[Round "05"]
[TimeControl "180+2"]
[Date "2023.02.21"]
[WhiteClock "0:00:26"]
[BlackClock "0:00:41"]

1. Nf3 {[%clk 0:03:00]}  Nf6 {[%clk 0:02:57]} 2. g3 {[%clk 0:03:00]}  d5 {[%clk 0:02:54]} 3. Bg2 {[%clk 0:03:00]}  e6 {[%clk 0:02:54]} 4. O-O {[%clk 0:03:01]}  Be7 {[%clk 0:02:54]} 5. b3 {[%clk 0:03:01]}  O-O {[%clk 0:02:54]} 6. Bb2 {[%clk 0:03:01]}  c5 {[%clk 0:02:54]} 7. d4 {[%clk 0:03:00]}  b6 {[%clk 0:02:54]} 8. c4 {[%clk 0:03:00]}  Bb7 {[%clk 0:02:54]} 9. cxd5 {[%clk 0:03:00]}  exd5 {[%clk 0:02:53]} 10. Nc3 {[%clk 0:02:58]}  Nc6 {[%clk 0:02:52]} 11. dxc5 {[%clk 0:02:58]}  bxc5 {[%clk 0:02:48]} 12. Rc1 {[%clk 0:02:58]}  Rc8 {[%clk 0:02:46]} 13. Na4 {[%clk 0:02:57]}  Na5 {[%clk 0:02:22]} 14. Bxf6 {[%clk 0:02:48]}  gxf6 {[%clk 0:02:23]} 15. Nh4 {[%clk 0:02:43]}  Qd7 {[%clk 0:02:20]} 16. Qd2 {[%clk 0:02:38]}  Rfd8 {[%clk 0:02:16]} 17. Qxa5 {[%clk 0:02:37]}  d4 {[%clk 0:02:05]} 18. Bxb7 {[%clk 0:02:27]}  Qxb7 {[%clk 0:02:05]} 19. Nxc5 {[%clk 0:02:23]}  Qd5 {[%clk 0:02:05]} 20. b4 {[%clk 0:02:23]}  f5 {[%clk 0:02:00]} 21. Ng2 {[%clk 0:02:13]}  Bg5 {[%clk 0:01:57]} 22. Rcd1 {[%clk 0:02:08]}  f4 {[%clk 0:01:56]} 23. gxf4 {[%clk 0:02:01]}  Be7 {[%clk 0:01:53]} 24. e3 {[%clk 0:02:01]}  Bf6 {[%clk 0:01:41]} 25. Qa6 {[%clk 0:01:51]}  Rc6 {[%clk 0:01:38]} 26. Qd3 {[%clk 0:01:44]}  Kh8 {[%clk 0:01:26]} 27. e4 {[%clk 0:01:42]}  Qh5 {[%clk 0:01:27]} 28. e5 {[%clk 0:01:32]}  Be7 {[%clk 0:01:24]} 29. Ne4 {[%clk 0:01:33]}  Rg8 {[%clk 0:01:22]} 30. Ng3 {[%clk 0:01:21]}  Qh3 {[%clk 0:01:16]} 31. Rfe1 {[%clk 0:01:05]}  Rh6 {[%clk 0:01:15]} 32. Qf5 {[%clk 0:00:58]}  Qxh2+ {[%clk 0:01:08]} 33. Kf1 {[%clk 0:00:56]}  Bxb4 {[%clk 0:01:03]} 34. Rxd4 {[%clk 0:00:45]}  Rxg3 {[%clk 0:00:42]} 35. fxg3 {[%clk 0:00:35]}  Qh1+ {[%clk 0:00:42]} 36. Kf2 {[%clk 0:00:31]}  Bxe1+ {[%clk 0:00:42]} 37. Nxe1 {[%clk 0:00:26]}  Rh2+ {[%clk 0:00:41]} 38. Ke3 {[%clk 0:00:26]}  Qxe1+ {[%clk 0:00:41]} 39. Kd3 {[%clk 0:00:26]}  Qb1+ {[%clk 0:00:41]} 0-1


[Site "https://www.chess.com"]

[Event "Titled Tuesday Blitz February 21 Early 2023"]
[White "Arenas, David"]
[Black "Shubin, Daniel"]
[WhiteFideId "4403177"]
[BlackFideId "30936470"]
[WhiteElo "2426"]
[BlackElo "2231"]
[Result "1-0"]
[Round "05"]
[TimeControl "180+2"]
[Date "2023.02.21"]
[WhiteClock "0:01:11"]
[BlackClock "0:01:10"]

1. d4 {[%clk 0:03:00]}  d5 {[%clk 0:02:52]} 2. c4 {[%clk 0:02:59]}  e6 {[%clk 0:02:49]} 3. Nf3 {[%clk 0:02:59]}  Nf6 {[%clk 0:02:50]} 4. g3 {[%clk 0:02:59]}  Be7 {[%clk 0:02:49]} 5. Bg2 {[%clk 0:02:58]}  O-O {[%clk 0:02:50]} 6. O-O {[%clk 0:02:58]}  c6 {[%clk 0:02:50]} 7. Nc3 {[%clk 0:02:55]}  b6 {[%clk 0:02:49]} 8. Bf4 {[%clk 0:02:51]}  Bb7 {[%clk 0:02:46]} 9. cxd5 {[%clk 0:02:43]}  cxd5 {[%clk 0:02:45]} 10. Rc1 {[%clk 0:02:24]}  Nh5 {[%clk 0:02:41]} 11. Bxb8 {[%clk 0:02:15]}  Rxb8 {[%clk 0:02:41]} 12. e3 {[%clk 0:02:11]}  Rc8 {[%clk 0:02:36]} 13. Qa4 {[%clk 0:02:08]}  Bc6 {[%clk 0:02:27]} 14. Qb3 {[%clk 0:02:04]}  Nf6 {[%clk 0:02:23]} 15. Ne5 {[%clk 0:02:03]}  Bb7 {[%clk 0:02:23]} 16. Qa4 {[%clk 0:01:41]}  a5 {[%clk 0:02:16]} 17. Nb5 {[%clk 0:01:38]}  Ba6 {[%clk 0:02:09]} 18. Qb3 {[%clk 0:01:33]}  Nd7 {[%clk 0:01:57]} 19. Nc6 {[%clk 0:01:30]}  Rxc6 {[%clk 0:01:36]} 20. Rxc6 {[%clk 0:01:31]}  Nb8 {[%clk 0:01:37]} 21. Rc2 {[%clk 0:01:27]}  a4 {[%clk 0:01:33]} 22. Qxa4 {[%clk 0:01:25]}  Qd7 {[%clk 0:01:33]} 23. Nc3 {[%clk 0:01:15]}  Qxa4 {[%clk 0:01:17]} 24. Nxa4 {[%clk 0:01:14]}  Bxf1 {[%clk 0:01:17]} 25. Bxf1 {[%clk 0:01:15]}  Nd7 {[%clk 0:01:15]} 26. Rc7 {[%clk 0:01:14]}  Rd8 {[%clk 0:01:15]} 27. Bb5 {[%clk 0:01:13]}  Nf6 {[%clk 0:01:08]} 28. Rxe7 {[%clk 0:01:13]}  Ne4 {[%clk 0:01:09]} 29. Nc3 {[%clk 0:01:11]}  Re8 {[%clk 0:01:10]} 30. Rxe8# {[%clk 0:01:11]} 1-0


[Site "https://www.chess.com"]

[Event "Titled Tuesday Blitz February 21 Early 2023"]
[White "I_KID_you_not"]
[Black "Kokoszczynski, Jan"]
[BlackFideId "1174460"]
[WhiteElo "2364"]
[BlackElo "2247"]
[Result "0-1"]
[Round "05"]
[TimeControl "180+2"]
[Date "2023.02.21"]
[WhiteClock "0:00:07"]
[BlackClock "0:00:04"]

1. e4 {[%clk 0:03:00]}  e5 {[%clk 0:02:52]} 2. Bc4 {[%clk 0:03:00]}  Nf6 {[%clk 0:02:50]} 3. d3 {[%clk 0:03:00]}  c6 {[%clk 0:02:47]} 4. Nf3 {[%clk 0:03:00]}  d5 {[%clk 0:02:40]} 5. Bb3 {[%clk 0:03:00]}  a5 {[%clk 0:02:40]} 6. a4 {[%clk 0:02:59]}  Bb4+ {[%clk 0:02:39]} 7. c3 {[%clk 0:02:49]}  Bd6 {[%clk 0:02:39]} 8. exd5 {[%clk 0:02:48]}  cxd5 {[%clk 0:02:39]} 9. Bg5 {[%clk 0:02:46]}  Be6 {[%clk 0:02:35]} 10. Na3 {[%clk 0:02:44]}  Nc6 {[%clk 0:02:24]} 11. Nb5 {[%clk 0:02:43]}  Bb8 {[%clk 0:02:23]} 12. O-O {[%clk 0:02:38]}  h6 {[%clk 0:02:22]} 13. Bh4 {[%clk 0:02:32]}  O-O {[%clk 0:02:12]} 14. Re1 {[%clk 0:02:25]}  Re8 {[%clk 0:02:11]} 15. Nd2 {[%clk 0:02:00]}  Ra6 {[%clk 0:01:45]} 16. Rc1 {[%clk 0:01:53]}  g5 {[%clk 0:01:17]} 17. Bg3 {[%clk 0:01:53]}  Bg4 {[%clk 0:01:17]} 18. Qc2 {[%clk 0:01:37]}  Bf5 {[%clk 0:01:17]} 19. Nf1 {[%clk 0:01:21]}  Qd7 {[%clk 0:01:10]} 20. Ne3 {[%clk 0:01:17]}  Bg6 {[%clk 0:01:10]} 21. Qd1 {[%clk 0:01:16]}  d4 {[%clk 0:00:49]} 22. Nc4 {[%clk 0:00:48]}  dxc3 {[%clk 0:00:49]} 23. Rxc3 {[%clk 0:00:45]}  Nd5 {[%clk 0:00:35]} 24. Rc1 {[%clk 0:00:44]}  Nf4 {[%clk 0:00:20]} 25. Bxf4 {[%clk 0:00:44]}  gxf4 {[%clk 0:00:20]} 26. d4 {[%clk 0:00:41]}  e4 {[%clk 0:00:20]} 27. d5 {[%clk 0:00:41]}  Ne5 {[%clk 0:00:20]} 28. d6 {[%clk 0:00:38]}  Nxc4 {[%clk 0:00:16]} 29. Rxc4 {[%clk 0:00:32]}  Rc6 {[%clk 0:00:13]} 30. Rxc6 {[%clk 0:00:31]}  bxc6 {[%clk 0:00:14]} 31. Nc7 {[%clk 0:00:18]}  Bxc7 {[%clk 0:00:14]} 32. dxc7 {[%clk 0:00:18]}  Qxc7 {[%clk 0:00:15]} 33. Qd4 {[%clk 0:00:17]}  Qe5 {[%clk 0:00:14]} 34. Qd7 {[%clk 0:00:15]}  c5 {[%clk 0:00:10]} 35. h3 {[%clk 0:00:15]}  e3 {[%clk 0:00:10]} 36. fxe3 {[%clk 0:00:14]}  fxe3 {[%clk 0:00:11]} 37. Bc4 {[%clk 0:00:12]}  Re7 {[%clk 0:00:10]} 38. Qd8+ {[%clk 0:00:12]}  Kg7 {[%clk 0:00:10]} 39. Re2 {[%clk 0:00:10]}  Qd4 {[%clk 0:00:09]} 40. Qxe7 {[%clk 0:00:05]}  Qxc4 {[%clk 0:00:09]} 41. Qe5+ {[%clk 0:00:05]}  Kg8 {[%clk 0:00:09]} 42. Qxe3 {[%clk 0:00:05]}  Qxa4 {[%clk 0:00:09]} 43. Qe8+ {[%clk 0:00:04]}  Qxe8 {[%clk 0:00:09]} 44. Rxe8+ {[%clk 0:00:05]}  Kg7 {[%clk 0:00:10]} 45. Rc8 {[%clk 0:00:05]}  a4 {[%clk 0:00:06]} 46. Rxc5 {[%clk 0:00:06]}  Bd3 {[%clk 0:00:06]} 47. Kf2 {[%clk 0:00:06]}  Kg6 {[%clk 0:00:06]} 48. Ke3 {[%clk 0:00:07]}  Bf1 {[%clk 0:00:06]} 49. Kf2 {[%clk 0:00:06]}  Bd3 {[%clk 0:00:06]} 50. g3 {[%clk 0:00:06]}  h5 {[%clk 0:00:05]} 51. h4 {[%clk 0:00:07]}  Bb1 {[%clk 0:00:04]} 52. Rg5+ {[%clk 0:00:07]}  Kh6 {[%clk 0:00:04]} 53. Rf5 {[%clk 0:00:07]}  Bxf5 {[%clk 0:00:04]} 0-1


[Site "https://www.chess.com"]

[Event "Titled Tuesday Blitz February 21 Early 2023"]
[White "Reprintsev, Alexander"]
[Black "Lorenzo De La Riva, Lazaro"]
[WhiteFideId "14100541"]
[BlackFideId "2268809"]
[WhiteElo "2253"]
[BlackElo "2404"]
[Result "1-0"]
[Round "05"]
[TimeControl "180+2"]
[Date "2023.02.21"]
[WhiteClock "0:00:18"]
[BlackClock "0:00:03"]

1. e4 {[%clk 0:03:00]}  d6 {[%clk 0:02:59]} 2. d4 {[%clk 0:03:00]}  Nf6 {[%clk 0:02:59]} 3. Nc3 {[%clk 0:03:00]}  c6 {[%clk 0:03:00]} 4. Be2 {[%clk 0:02:58]}  e5 {[%clk 0:02:56]} 5. Be3 {[%clk 0:02:55]}  Nbd7 {[%clk 0:02:53]} 6. g4 {[%clk 0:02:54]}  h6 {[%clk 0:02:52]} 7. Qd2 {[%clk 0:02:48]}  b5 {[%clk 0:02:51]} 8. f3 {[%clk 0:02:43]}  b4 {[%clk 0:01:51]} 9. Nd1 {[%clk 0:02:41]}  a5 {[%clk 0:01:48]} 10. Nf2 {[%clk 0:02:40]}  Qc7 {[%clk 0:01:37]} 11. h4 {[%clk 0:02:37]}  c5 {[%clk 0:01:31]} 12. dxe5 {[%clk 0:02:36]}  Nxe5 {[%clk 0:01:20]} 13. f4 {[%clk 0:02:32]}  Nc6 {[%clk 0:01:17]} 14. g5 {[%clk 0:02:28]}  Nd7 {[%clk 0:01:13]} 15. gxh6 {[%clk 0:02:14]}  Rxh6 {[%clk 0:01:06]} 16. Ng4 {[%clk 0:02:13]}  Rh8 {[%clk 0:01:05]} 17. h5 {[%clk 0:02:05]}  Nb6 {[%clk 0:00:58]} 18. h6 {[%clk 0:02:02]}  Bxg4 {[%clk 0:00:58]} 19. Bxg4 {[%clk 0:02:01]}  Nc4 {[%clk 0:00:53]} 20. Qe2 {[%clk 0:01:53]}  Nxe3 {[%clk 0:00:52]} 21. Qxe3 {[%clk 0:01:53]}  gxh6 {[%clk 0:00:50]} 22. O-O-O {[%clk 0:01:51]}  Bg7 {[%clk 0:00:48]} 23. Nf3 {[%clk 0:01:50]}  Nd4 {[%clk 0:00:20]} 24. Nxd4 {[%clk 0:01:47]}  cxd4 {[%clk 0:00:21]} 25. Qb3 {[%clk 0:01:45]}  Qc5 {[%clk 0:00:18]} 26. Rh5 {[%clk 0:01:41]}  Qb6 {[%clk 0:00:17]} 27. Qd5 {[%clk 0:01:35]}  Rb8 {[%clk 0:00:17]} 28. Rf5 {[%clk 0:01:33]}  Rb7 {[%clk 0:00:16]} 29. Bh5 {[%clk 0:01:33]}  Rf8 {[%clk 0:00:13]} 30. Rg1 {[%clk 0:01:33]}  Bh8 {[%clk 0:00:12]} 31. Rg8 {[%clk 0:01:18]}  Rxg8 {[%clk 0:00:11]} 32. Bxf7+ {[%clk 0:01:18]}  Kd8 {[%clk 0:00:12]} 33. Bxg8 {[%clk 0:01:18]}  d3 {[%clk 0:00:11]} 34. Rf8+ {[%clk 0:01:09]}  Kc7 {[%clk 0:00:11]} 35. Qf7+ {[%clk 0:01:02]}  Kc6 {[%clk 0:00:11]} 36. Rc8+ {[%clk 0:01:03]}  Rc7 {[%clk 0:00:05]} 37. Qd5+ {[%clk 0:01:03]}  Kd7 {[%clk 0:00:06]} 38. Qf5+ {[%clk 0:00:53]}  Kc6 {[%clk 0:00:06]} 39. Bd5+ {[%clk 0:00:54]}  Kc5 {[%clk 0:00:06]} 40. Bb7+ {[%clk 0:00:48]}  Kd4 {[%clk 0:00:06]} 41. Qd5+ {[%clk 0:00:33]}  Ke3 {[%clk 0:00:06]} 42. Qxd3+ {[%clk 0:00:33]}  Kf2 {[%clk 0:00:05]} 43. Rxh8 {[%clk 0:00:29]}  Qxb7 {[%clk 0:00:03]} 44. Rxh6 {[%clk 0:00:26]}  Rg7 {[%clk 0:00:02]} 45. Rh2+ {[%clk 0:00:22]}  Kg1 {[%clk 0:00:03]} 46. Re2 {[%clk 0:00:18]} 1-0


[Site "https://www.chess.com"]

[Event "Titled Tuesday Blitz February 21 Early 2023"]
[White "Deev, Andrei"]
[Black "Taboas Rodriguez, Daniel"]
[WhiteFideId "4102690"]
[BlackFideId "2208466"]
[WhiteElo "2390"]
[BlackElo "2371"]
[Result "0-1"]
[Round "05"]
[TimeControl "180+2"]
[Date "2023.02.21"]
[WhiteClock "0:00:02"]
[BlackClock "0:00:53"]

1. e4 {[%clk 0:03:00]}  e5 {[%clk 0:02:59]} 2. Nf3 {[%clk 0:03:00]}  Nc6 {[%clk 0:02:59]} 3. Bc4 {[%clk 0:03:00]}  Nf6 {[%clk 0:02:59]} 4. d3 {[%clk 0:02:59]}  Bc5 {[%clk 0:02:58]} 5. Nc3 {[%clk 0:02:59]}  d6 {[%clk 0:02:30]} 6. h3 {[%clk 0:02:57]}  Be6 {[%clk 0:02:29]} 7. Bb3 {[%clk 0:02:56]}  Bxb3 {[%clk 0:02:21]} 8. axb3 {[%clk 0:02:55]}  Nd4 {[%clk 0:02:22]} 9. Nxd4 {[%clk 0:02:54]}  Bxd4 {[%clk 0:02:23]} 10. Ne2 {[%clk 0:02:49]}  Bb6 {[%clk 0:02:22]} 11. Ng3 {[%clk 0:02:48]}  g6 {[%clk 0:02:03]} 12. Bh6 {[%clk 0:02:41]}  Qe7 {[%clk 0:02:00]} 13. O-O {[%clk 0:02:38]}  O-O-O {[%clk 0:01:58]} 14. Be3 {[%clk 0:02:34]}  Kb8 {[%clk 0:01:47]} 15. Bxb6 {[%clk 0:02:17]}  cxb6 {[%clk 0:01:37]} 16. Qe2 {[%clk 0:01:29]}  Rhe8 {[%clk 0:01:30]} 17. f4 {[%clk 0:01:13]}  d5 {[%clk 0:01:15]} 18. exd5 {[%clk 0:01:03]}  exf4 {[%clk 0:01:09]} 19. Qxe7 {[%clk 0:00:59]}  Rxe7 {[%clk 0:01:10]} 20. Rxf4 {[%clk 0:00:57]}  Nxd5 {[%clk 0:01:10]} 21. Rf2 {[%clk 0:00:53]}  f5 {[%clk 0:01:10]} 22. Nf1 {[%clk 0:00:50]}  Rde8 {[%clk 0:01:09]} 23. Nd2 {[%clk 0:00:47]}  Re2 {[%clk 0:01:09]} 24. Nf3 {[%clk 0:00:25]}  Nb4 {[%clk 0:01:07]} 25. Nd4 {[%clk 0:00:20]}  Rxf2 {[%clk 0:01:03]} 26. Kxf2 {[%clk 0:00:20]}  Rd8 {[%clk 0:01:04]} 27. Nf3 {[%clk 0:00:12]}  Nxc2 {[%clk 0:01:03]} 28. Rd1 {[%clk 0:00:11]}  Nd4 {[%clk 0:00:58]} 29. Nxd4 {[%clk 0:00:11]}  Rxd4 {[%clk 0:00:58]} 30. Ke3 {[%clk 0:00:11]}  Rb4 {[%clk 0:00:59]} 31. d4 {[%clk 0:00:08]}  Rxb3+ {[%clk 0:00:59]} 32. Kf4 {[%clk 0:00:09]}  Rxb2 {[%clk 0:00:59]} 33. g4 {[%clk 0:00:08]}  fxg4 {[%clk 0:00:56]} 34. hxg4 {[%clk 0:00:09]}  h5 {[%clk 0:00:56]} 35. g5 {[%clk 0:00:08]}  Rg2 {[%clk 0:00:55]} 36. d5 {[%clk 0:00:07]}  Kc7 {[%clk 0:00:54]} 37. d6+ {[%clk 0:00:07]}  Kd7 {[%clk 0:00:54]} 38. Ra1 {[%clk 0:00:04]}  a6 {[%clk 0:00:53]} 39. Rb1 {[%clk 0:00:04]}  b5 {[%clk 0:00:53]} 40. Rd1 {[%clk 0:00:03]}  Rg4+ {[%clk 0:00:53]} 41. Ke5 {[%clk 0:00:03]}  Rxg5+ {[%clk 0:00:53]} 42. Kf6 {[%clk 0:00:03]}  Rg2 {[%clk 0:00:53]} 43. Kf7 {[%clk 0:00:02]} 0-1


[Site "https://www.chess.com"]

[Event "Titled Tuesday Blitz February 21 Early 2023"]
[White "Fernandez Siles, Luis"]
[Black "Manukyan, Artyom"]
[WhiteFideId "2209420"]
[BlackFideId "13305786"]
[WhiteElo "2218"]
[BlackElo "2110"]
[Result "1-0"]
[Round "05"]
[TimeControl "180+2"]
[Date "2023.02.21"]
[WhiteClock "0:00:46"]
[BlackClock "0:00:04"]

1. d4 {[%clk 0:03:00]}  d5 {[%clk 0:02:55]} 2. c4 {[%clk 0:03:00]}  e6 {[%clk 0:02:50]} 3. Nc3 {[%clk 0:03:00]}  Nf6 {[%clk 0:02:51]} 4. Nf3 {[%clk 0:02:58]}  c5 {[%clk 0:02:49]} 5. e3 {[%clk 0:02:58]}  Nc6 {[%clk 0:02:45]} 6. a3 {[%clk 0:02:58]}  cxd4 {[%clk 0:02:44]} 7. exd4 {[%clk 0:02:58]}  dxc4 {[%clk 0:02:42]} 8. Bxc4 {[%clk 0:02:58]}  Be7 {[%clk 0:02:43]} 9. Qd3 {[%clk 0:02:57]}  O-O {[%clk 0:02:43]} 10. O-O {[%clk 0:02:58]}  b6 {[%clk 0:02:43]} 11. Ba2 {[%clk 0:02:55]}  Bb7 {[%clk 0:02:43]} 12. Bg5 {[%clk 0:02:53]}  g6 {[%clk 0:02:42]} 13. Rad1 {[%clk 0:02:50]}  Re8 {[%clk 0:02:41]} 14. Rfe1 {[%clk 0:02:50]}  Nd5 {[%clk 0:02:25]} 15. Nxd5 {[%clk 0:02:29]}  Bxg5 {[%clk 0:02:24]} 16. Nxg5 {[%clk 0:02:24]}  Qxg5 {[%clk 0:02:13]} 17. Ne3 {[%clk 0:01:44]}  Rad8 {[%clk 0:02:00]} 18. d5 {[%clk 0:01:18]}  exd5 {[%clk 0:01:13]} 19. Bxd5 {[%clk 0:01:06]}  Ne7 {[%clk 0:00:18]} 20. h4 {[%clk 0:00:54]}  Qe5 {[%clk 0:00:05]} 21. Ng4 {[%clk 0:00:50]}  Qxd5 {[%clk 0:00:04]} 22. Nf6+ {[%clk 0:00:50]}  Kg7 {[%clk 0:00:05]} 23. Nxd5 {[%clk 0:00:50]}  Rxd5 {[%clk 0:00:05]} 24. Qc3+ {[%clk 0:00:49]}  f6 {[%clk 0:00:04]} 25. Rxe7+ {[%clk 0:00:46]}  Rxe7 {[%clk 0:00:04]} 26. Rxd5 {[%clk 0:00:46]} 1-0


[Site "https://www.chess.com"]

[Event "Titled Tuesday Blitz February 21 Early 2023"]
[White "Baches Garcia, Guillermo"]
[Black "tandercat"]
[WhiteFideId "2209764"]
[WhiteElo "2327"]
[BlackElo "1859"]
[Result "1-0"]
[Round "05"]
[TimeControl "180+2"]
[Date "2023.02.21"]
[WhiteClock "0:01:05"]
[BlackClock "0:00:58"]

1. e4 {[%clk 0:03:00]}  c5 {[%clk 0:02:59]} 2. Nf3 {[%clk 0:02:59]}  Nc6 {[%clk 0:02:59]} 3. d4 {[%clk 0:02:59]}  cxd4 {[%clk 0:03:00]} 4. Nxd4 {[%clk 0:02:59]}  e5 {[%clk 0:03:00]} 5. Nb5 {[%clk 0:02:59]}  d6 {[%clk 0:03:00]} 6. N1c3 {[%clk 0:02:58]}  a6 {[%clk 0:03:01]} 7. Na3 {[%clk 0:02:58]}  Be7 {[%clk 0:03:01]} 8. Be3 {[%clk 0:02:57]}  b5 {[%clk 0:02:41]} 9. Nd5 {[%clk 0:02:56]}  Rb8 {[%clk 0:02:35]} 10. c4 {[%clk 0:02:47]}  b4 {[%clk 0:02:24]} 11. Nc2 {[%clk 0:02:39]}  a5 {[%clk 0:02:14]} 12. h4 {[%clk 0:02:16]}  Nf6 {[%clk 0:02:14]} 13. Nxf6+ {[%clk 0:02:03]}  Bxf6 {[%clk 0:02:13]} 14. g3 {[%clk 0:02:03]}  O-O {[%clk 0:02:10]} 15. b3 {[%clk 0:02:02]}  Be6 {[%clk 0:02:04]} 16. Bh3 {[%clk 0:02:01]}  Bxh3 {[%clk 0:01:57]} 17. Rxh3 {[%clk 0:02:02]}  Qd7 {[%clk 0:01:55]} 18. Rh1 {[%clk 0:01:53]}  Qe6 {[%clk 0:01:55]} 19. Kf1 {[%clk 0:01:46]}  Nd4 {[%clk 0:01:46]} 20. Kg2 {[%clk 0:01:42]}  Bd8 {[%clk 0:01:24]} 21. Nxd4 {[%clk 0:01:23]}  exd4 {[%clk 0:01:21]} 22. Qxd4 {[%clk 0:01:22]}  Bb6 {[%clk 0:01:21]} 23. Qd5 {[%clk 0:01:19]}  Bxe3 {[%clk 0:01:13]} 24. Qxe6 {[%clk 0:01:14]}  fxe6 {[%clk 0:01:11]} 25. fxe3 {[%clk 0:01:15]}  Rf6 {[%clk 0:01:01]} 26. Rhf1 {[%clk 0:01:11]}  Rbf8 {[%clk 0:00:59]} 27. Rxf6 {[%clk 0:01:08]}  Rxf6 {[%clk 0:00:58]} 28. Rd1 {[%clk 0:01:05]} 1-0


[Site "https://www.chess.com"]